[Event "Early-Titled-Tuesday-Blitz-March-12-2024"]
[Site "Chess.com"]
[Date "2024.03.12"]
[Round "6"]
[White "margarita_2703"]
[Black "MikeSailer"]
[Result "0-1"]
[WhiteElo "2384"]
[BlackElo "2140"]
[TimeControl "180+1"]
[EndTime "9:03:22 PDT"]
[Termination "MikeSailer won by resignation"]

1. g4 {[%clk 0:03:00.9]} 1... c5 {[%clk 0:02:51.6]} 2. Bg2 {[%clk 0:02:59.8]}
2... Nc6 {[%clk 0:02:51.9]} 3. c4 {[%clk 0:02:57.8]} 3... d6 {[%clk 0:02:51.6]}
4. h3 {[%clk 0:02:58]} 4... g6 {[%clk 0:02:51.1]} 5. Nc3 {[%clk 0:02:56.5]} 5...
Bg7 {[%clk 0:02:51.5]} 6. Nf3 {[%clk 0:02:56.7]} 6... Bd7 {[%clk 0:02:49.6]} 7.
b3 {[%clk 0:02:54]} 7... e6 {[%clk 0:02:47.7]} 8. Bb2 {[%clk 0:02:54]} 8... Nge7
{[%clk 0:02:48.2]} 9. Na4 {[%clk 0:02:51.4]} 9... e5 {[%clk 0:02:38.9]} 10. d3
{[%clk 0:02:50.1]} 10... a6 {[%clk 0:02:32.3]} 11. e4 {[%clk 0:02:46.9]} 11...
b5 {[%clk 0:02:28.1]} 12. Nc3 {[%clk 0:02:46.1]} 12... b4 {[%clk 0:02:20.1]} 13.
Nd5 {[%clk 0:02:45]} 13... Nxd5 {[%clk 0:02:17.9]} 14. exd5 {[%clk 0:02:44.4]}
14... Nd4 {[%clk 0:02:18.4]} 15. Bxd4 {[%clk 0:02:44]} 15... cxd4 {[%clk
0:02:14.6]} 16. Nd2 {[%clk 0:02:40.7]} 16... Bh6 {[%clk 0:02:10.2]} 17. Ne4
{[%clk 0:02:40.1]} 17... Qe7 {[%clk 0:01:59.2]} 18. a3 {[%clk 0:02:32.5]} 18...
bxa3 {[%clk 0:01:53.1]} 19. Rxa3 {[%clk 0:02:33.4]} 19... O-O {[%clk 0:01:52.2]}
20. Qa1 {[%clk 0:02:30.1]} 20... f5 {[%clk 0:01:38.3]} 21. Ng3 {[%clk
0:02:26.9]} 21... Bf4 {[%clk 0:01:08.1]} 22. gxf5 {[%clk 0:02:24.5]} 22... Bxg3
{[%clk 0:01:04.1]} 23. fxg3 {[%clk 0:02:25.4]} 23... Bxf5 {[%clk 0:00:54.6]} 24.
b4 {[%clk 0:02:24.2]} 24... Qg5 {[%clk 0:00:51.1]} 25. g4 {[%clk 0:02:24]} 25...
Qe3+ {[%clk 0:00:48.6]} 26. Kd1 {[%clk 0:02:24.1]} 26... Bxd3 {[%clk 0:00:46.6]}
27. Re1 {[%clk 0:02:20.3]} 27... Qg3 {[%clk 0:00:34.7]} 28. Bf1 {[%clk 0:02:15]}
28... Qxe1+ {[%clk 0:00:27.3]} 29. Kxe1 {[%clk 0:02:12.5]} 29... Rxf1+ {[%clk
0:00:28]} 30. Kd2 {[%clk 0:02:13]} 30... Rxa1 {[%clk 0:00:27.6]} 31. Rxa1 {[%clk
0:02:13.9]} 31... Bxc4 {[%clk 0:00:28.1]} 32. Ra5 {[%clk 0:02:13.5]} 32... Bb5
{[%clk 0:00:27]} 33. Ra1 {[%clk 0:02:13.1]} 33... Rc8 {[%clk 0:00:26]} 34. g5
{[%clk 0:02:12.2]} 0-1

[Event "Early-Titled-Tuesday-Blitz-March-12-2024"]
[Site "Chess.com"]
[Date "2024.03.12"]
[Round "6"]
[White "FischerKasparow"]
[Black "Chessdude1987"]
[Result "0-1"]
[WhiteElo "2094"]
[BlackElo "2397"]
[TimeControl "180+1"]
[EndTime "9:03:23 PDT"]
[Termination "Chessdude1987 won on time"]

1. e4 {[%clk 0:03:00.9]} 1... e6 {[%clk 0:02:59.6]} 2. d4 {[%clk 0:03:00.2]}
2... d5 {[%clk 0:03:00.2]} 3. Bd3 {[%clk 0:03:00.1]} 3... c5 {[%clk 0:02:59.3]}
4. exd5 {[%clk 0:02:58.2]} 4... exd5 {[%clk 0:02:58.5]} 5. Nf3 {[%clk
0:02:58.3]} 5... Nf6 {[%clk 0:02:54.3]} 6. O-O {[%clk 0:02:56.1]} 6... Be7
{[%clk 0:02:38.4]} 7. dxc5 {[%clk 0:02:54.6]} 7... O-O {[%clk 0:02:37.9]} 8. b4
{[%clk 0:02:54.2]} 8... a5 {[%clk 0:02:37.5]} 9. c3 {[%clk 0:02:54.4]} 9... axb4
{[%clk 0:02:36]} 10. cxb4 {[%clk 0:02:54.6]} 10... Nc6 {[%clk 0:02:19.8]} 11.
Qb3 {[%clk 0:02:38.4]} 11... Ne4 {[%clk 0:02:15.5]} 12. Bb2 {[%clk 0:02:26.6]}
12... Bg4 {[%clk 0:02:07.4]} 13. Nbd2 {[%clk 0:02:23.3]} 13... Nxd2 {[%clk
0:01:58.9]} 14. Nxd2 {[%clk 0:02:22.4]} 14... Bf6 {[%clk 0:01:59.2]} 15. Bxf6
{[%clk 0:02:16.9]} 15... Qxf6 {[%clk 0:01:58.8]} 16. a3 {[%clk 0:02:11.2]} 16...
Nd4 {[%clk 0:01:51.9]} 0-1

[Event "Early-Titled-Tuesday-Blitz-March-12-2024"]
[Site "Chess.com"]
[Date "2024.03.12"]
[Round "6"]
[White "ActorXu"]
[Black "AsaHoffmann"]
[Result "1-0"]
[WhiteElo "2871"]
[BlackElo "2392"]
[TimeControl "180+1"]
[EndTime "9:03:42 PDT"]
[Termination "ActorXu won by resignation"]

1. e4 {[%clk 0:02:54.2]} 1... d6 {[%clk 0:02:58.7]} 2. d4 {[%clk 0:02:53.3]}
2... c6 {[%clk 0:02:58.6]} 3. Nc3 {[%clk 0:02:52.9]} 3... a6 {[%clk 0:02:58.4]}
4. f4 {[%clk 0:02:52.8]} 4... d5 {[%clk 0:02:57.8]} 5. e5 {[%clk 0:02:50.8]}
5... h5 {[%clk 0:02:57.7]} 6. Nf3 {[%clk 0:02:50.7]} 6... Bg4 {[%clk 0:02:56.7]}
7. Be3 {[%clk 0:02:50.9]} 7... e6 {[%clk 0:02:56.6]} 8. h3 {[%clk 0:02:50.4]}
8... Bxf3 {[%clk 0:02:55.8]} 9. Qxf3 {[%clk 0:02:51]} 9... g6 {[%clk 0:02:53.5]}
10. Bd3 {[%clk 0:02:47.5]} 10... h4 {[%clk 0:02:47.6]} 11. O-O {[%clk
0:02:44.9]} 11... Qc7 {[%clk 0:02:47.1]} 12. Ne2 {[%clk 0:02:43.1]} 12... Nh6
{[%clk 0:02:43.2]} 13. b3 {[%clk 0:02:41.8]} 13... Nf5 {[%clk 0:02:41.3]} 14.
Bf2 {[%clk 0:02:41.2]} 14... Nd7 {[%clk 0:02:37.8]} 15. c4 {[%clk 0:02:40.9]}
15... Be7 {[%clk 0:02:30.9]} 16. Rac1 {[%clk 0:02:39.6]} 16... Qa5 {[%clk
0:02:27.8]} 17. Rc2 {[%clk 0:02:32.3]} 17... O-O-O {[%clk 0:02:18.3]} 18. cxd5
{[%clk 0:02:26.3]} 18... Qxd5 {[%clk 0:02:17.3]} 19. Be4 {[%clk 0:02:06.1]}
19... Qa5 {[%clk 0:02:16.6]} 20. d5 {[%clk 0:01:54.4]} 20... exd5 {[%clk
0:02:12.9]} 21. Bxd5 {[%clk 0:01:54.5]} 21... Nb8 {[%clk 0:01:53.8]} 22. Bxf7
{[%clk 0:01:49.6]} 22... Rd2 {[%clk 0:01:49]} 23. Rxd2 {[%clk 0:01:39.5]} 23...
Qxd2 {[%clk 0:01:47.8]} 24. Bxg6 {[%clk 0:01:39.6]} 24... Ng3 {[%clk 0:01:42.8]}
25. Nxg3 {[%clk 0:01:35.8]} 25... hxg3 {[%clk 0:01:42.1]} 26. Qxg3 {[%clk
0:01:35.6]} 26... Nd7 {[%clk 0:01:35.3]} 27. Bf5 {[%clk 0:01:34.9]} 27... Bh4
{[%clk 0:01:27.4]} 28. Qd3 {[%clk 0:01:21.6]} 28... Bxf2+ {[%clk 0:01:22.5]} 29.
Rxf2 {[%clk 0:01:21.9]} 29... Qxd3 {[%clk 0:01:20.7]} 30. Bxd3 {[%clk
0:01:21.4]} 30... Nc5 {[%clk 0:01:20.4]} 31. Bf5+ {[%clk 0:01:21.5]} 31... Kd8
{[%clk 0:01:20.6]} 32. Rc2 {[%clk 0:01:16.4]} 32... Rf8 {[%clk 0:01:11.9]} 33.
Rxc5 {[%clk 0:01:15]} 33... Rxf5 {[%clk 0:01:11.6]} 34. g3 {[%clk 0:01:15.4]}
1-0

[Event "Early-Titled-Tuesday-Blitz-March-12-2024"]
[Site "Chess.com"]
[Date "2024.03.12"]
[Round "6"]
[White "dropstoneDP"]
[Black "vasblesk"]
[Result "1/2-1/2"]
[WhiteElo "2998"]
[BlackElo "2756"]
[TimeControl "180+1"]
[EndTime "9:03:48 PDT"]
[Termination "Game drawn by repetition"]

1. e4 {[%clk 0:02:59.8]} 1... e5 {[%clk 0:02:58.2]} 2. Nf3 {[%clk 0:02:59.1]}
2... Nf6 {[%clk 0:02:58.8]} 3. Nxe5 {[%clk 0:02:57.7]} 3... d6 {[%clk
0:02:59.2]} 4. Nf3 {[%clk 0:02:58.3]} 4... Nxe4 {[%clk 0:02:58.8]} 5. Bd3 {[%clk
0:02:58.2]} 5... Nf6 {[%clk 0:02:58.6]} 6. O-O {[%clk 0:02:58]} 6... Be7 {[%clk
0:02:59.3]} 7. Re1 {[%clk 0:02:58.4]} 7... O-O {[%clk 0:02:59.5]} 8. Bf1 {[%clk
0:02:56.9]} 8... d5 {[%clk 0:02:57.6]} 9. d4 {[%clk 0:02:57.1]} 9... Bd6 {[%clk
0:02:56.6]} 10. h3 {[%clk 0:02:56.3]} 10... h6 {[%clk 0:02:53]} 11. c4 {[%clk
0:02:53.4]} 11... dxc4 {[%clk 0:02:47.8]} 12. Bxc4 {[%clk 0:02:54.3]} 12... c6
{[%clk 0:02:43.6]} 13. Nc3 {[%clk 0:02:54]} 13... Bf5 {[%clk 0:02:40.7]} 14. Ne5
{[%clk 0:02:52.5]} 14... Nbd7 {[%clk 0:02:37.4]} 15. Bf4 {[%clk 0:02:51.9]}
15... Nb6 {[%clk 0:02:31.9]} 16. Bb3 {[%clk 0:02:51.6]} 16... Nbd5 {[%clk
0:02:28.5]} 17. Nxd5 {[%clk 0:02:49.1]} 17... Nxd5 {[%clk 0:02:26.1]} 18. Bxd5
{[%clk 0:02:48.3]} 18... cxd5 {[%clk 0:02:27]} 19. Qd2 {[%clk 0:02:42.2]} 19...
Qb6 {[%clk 0:02:19]} 20. Nd3 {[%clk 0:02:32.3]} 20... Bxd3 {[%clk 0:02:03.7]}
21. Bxd6 {[%clk 0:02:31.9]} 21... Qxd6 {[%clk 0:02:04.3]} 22. Qxd3 {[%clk
0:02:32.2]} 22... Qb4 {[%clk 0:01:56.2]} 23. b3 {[%clk 0:02:25.3]} 23... Rfe8
{[%clk 0:01:54]} 24. Re5 {[%clk 0:02:13.7]} 24... Rxe5 {[%clk 0:01:25.2]} 25.
dxe5 {[%clk 0:02:14.6]} 25... d4 {[%clk 0:01:25.8]} 26. Rd1 {[%clk 0:02:03.4]}
26... Rd8 {[%clk 0:01:23.9]} 27. g3 {[%clk 0:02:02]} 27... Qc5 {[%clk
0:01:19.7]} 28. Qe4 {[%clk 0:02:01.8]} 28... d3 {[%clk 0:01:00.3]} 29. Rxd3
{[%clk 0:01:59.1]} 29... Rxd3 {[%clk 0:00:59.1]} 30. Qxd3 {[%clk 0:02:00]} 30...
Qxe5 {[%clk 0:00:59.6]} 31. Kg2 {[%clk 0:01:47.4]} 31... g6 {[%clk 0:00:56.6]}
32. h4 {[%clk 0:01:45.4]} 32... h5 {[%clk 0:00:56.5]} 33. a4 {[%clk 0:01:43.5]}
33... Kg7 {[%clk 0:00:56.4]} 34. Kf3 {[%clk 0:01:43.3]} 34... Qf6+ {[%clk
0:00:53.3]} 35. Ke2 {[%clk 0:01:42.5]} 35... Qb2+ {[%clk 0:00:53.1]} 36. Kf3
{[%clk 0:01:42.4]} 36... Qf6+ {[%clk 0:00:53]} 37. Ke2 {[%clk 0:01:41.3]} 37...
Qb2+ {[%clk 0:00:52.7]} 38. Ke3 {[%clk 0:01:39.2]} 38... Qe5+ {[%clk 0:00:50.6]}
39. Kf3 {[%clk 0:01:37]} 39... Qf6+ {[%clk 0:00:50.7]} 1/2-1/2

[Event "Early-Titled-Tuesday-Blitz-March-12-2024"]
[Site "Chess.com"]
[Date "2024.03.12"]
[Round "6"]
[White "mitrabhaa"]
[Black "kushagramohan"]
[Result "1-0"]
[WhiteElo "2945"]
[BlackElo "2772"]
[TimeControl "180+1"]
[EndTime "9:03:52 PDT"]
[Termination "mitrabhaa won by resignation"]

1. Nf3 {[%clk 0:02:56.1]} 1... d5 {[%clk 0:02:59.3]} 2. e3 {[%clk 0:02:56.2]}
2... c5 {[%clk 0:02:57.8]} 3. c4 {[%clk 0:02:56.6]} 3... d4 {[%clk 0:02:53.2]}
4. exd4 {[%clk 0:02:56.5]} 4... cxd4 {[%clk 0:02:54.1]} 5. d3 {[%clk 0:02:57.4]}
5... Nc6 {[%clk 0:02:53.5]} 6. g3 {[%clk 0:02:57.8]} 6... e5 {[%clk 0:02:52.2]}
7. Bg2 {[%clk 0:02:58.3]} 7... Bd6 {[%clk 0:02:52.8]} 8. O-O {[%clk 0:02:58.2]}
8... Nf6 {[%clk 0:02:51.3]} 9. Bg5 {[%clk 0:02:58.1]} 9... O-O {[%clk
0:02:48.1]} 10. Nbd2 {[%clk 0:02:57.9]} 10... Bf5 {[%clk 0:02:47.3]} 11. Qe2
{[%clk 0:02:57.2]} 11... Re8 {[%clk 0:02:43.7]} 12. Ne1 {[%clk 0:02:57.1]} 12...
h6 {[%clk 0:02:39.7]} 13. Bxf6 {[%clk 0:02:55.4]} 13... Qxf6 {[%clk 0:02:40.6]}
14. Nc2 {[%clk 0:02:55.4]} 14... a5 {[%clk 0:02:35.1]} 15. a3 {[%clk 0:02:54.2]}
15... a4 {[%clk 0:02:34.4]} 16. Rab1 {[%clk 0:02:54.1]} 16... Bg6 {[%clk
0:02:31.1]} 17. b4 {[%clk 0:02:51.5]} 17... axb3 {[%clk 0:02:31.4]} 18. Rxb3
{[%clk 0:02:52]} 18... Qe7 {[%clk 0:02:31]} 19. Rfb1 {[%clk 0:02:51.7]} 19...
Na5 {[%clk 0:02:31.1]} 20. Rb5 {[%clk 0:02:51.6]} 20... Ra7 {[%clk 0:02:03.5]}
21. Nb4 {[%clk 0:02:35.1]} 21... Bxb4 {[%clk 0:01:51.5]} 22. axb4 {[%clk
0:02:34.9]} 22... Nc6 {[%clk 0:01:51.2]} 23. Ne4 {[%clk 0:02:31.8]} 23... Qc7
{[%clk 0:01:42.7]} 24. c5 {[%clk 0:02:24.3]} 24... Ra3 {[%clk 0:01:41]} 25. Nd6
{[%clk 0:02:19.6]} 25... Rb8 {[%clk 0:01:20.1]} 26. Be4 {[%clk 0:02:17.5]} 26...
Bxe4 {[%clk 0:01:14.6]} 27. Qxe4 {[%clk 0:02:17.4]} 27... Rc3 {[%clk 0:01:14.1]}
28. Ra1 {[%clk 0:02:13.3]} 28... Rc2 {[%clk 0:01:07.9]} 29. h4 {[%clk
0:02:03.7]} 29... Qe7 {[%clk 0:01:07.5]} 30. Nxb7 {[%clk 0:01:51.7]} 30... Rxb7
{[%clk 0:01:04.2]} 31. Ra8+ {[%clk 0:01:49.1]} 31... Nd8 {[%clk 0:00:44.8]} 32.
Rxb7 {[%clk 0:01:39.4]} 32... Qf6 {[%clk 0:00:44.9]} 33. Rxd8+ {[%clk 0:01:40]}
33... Qxd8 {[%clk 0:00:44.4]} 34. Ra7 {[%clk 0:01:40.6]} 1-0

[Event "Early-Titled-Tuesday-Blitz-March-12-2024"]
[Site "Chess.com"]
[Date "2024.03.12"]
[Round "6"]
[White "emeli_chess"]
[Black "willcab71"]
[Result "1-0"]
[WhiteElo "2400"]
[BlackElo "2138"]
[TimeControl "180+1"]
[EndTime "9:03:54 PDT"]
[Termination "emeli_chess won by resignation"]

1. d4 {[%clk 0:03:00]} 1... Nf6 {[%clk 0:02:57.3]} 2. c4 {[%clk 0:03:00.1]} 2...
g6 {[%clk 0:02:57.6]} 3. Nc3 {[%clk 0:03:00.5]} 3... Bg7 {[%clk 0:02:58.5]} 4.
e4 {[%clk 0:03:00.9]} 4... O-O {[%clk 0:02:59.4]} 5. Be3 {[%clk 0:03:00.6]} 5...
d6 {[%clk 0:02:59.8]} 6. f3 {[%clk 0:03:00.8]} 6... c6 {[%clk 0:02:58.7]} 7. Bd3
{[%clk 0:02:59.8]} 7... a6 {[%clk 0:02:58.6]} 8. Nge2 {[%clk 0:02:59.4]} 8... b5
{[%clk 0:02:58.4]} 9. O-O {[%clk 0:02:59.4]} 9... Nbd7 {[%clk 0:02:56.8]} 10. a3
{[%clk 0:02:57.9]} 10... e5 {[%clk 0:02:56.7]} 11. d5 {[%clk 0:02:58]} 11...
cxd5 {[%clk 0:02:52.7]} 12. cxd5 {[%clk 0:02:57.7]} 12... Bb7 {[%clk 0:02:51.7]}
13. b4 {[%clk 0:02:53.6]} 13... Rc8 {[%clk 0:02:51.3]} 14. a4 {[%clk 0:02:49.2]}
14... bxa4 {[%clk 0:02:44.7]} 15. Nxa4 {[%clk 0:02:48.9]} 15... Ne8 {[%clk
0:02:34.4]} 16. Rc1 {[%clk 0:02:42.5]} 16... Rxc1 {[%clk 0:02:33.6]} 17. Qxc1
{[%clk 0:02:38.8]} 17... Nc7 {[%clk 0:02:33.1]} 18. Nec3 {[%clk 0:02:16.9]}
18... f5 {[%clk 0:02:29.8]} 19. exf5 {[%clk 0:02:16.2]} 19... gxf5 {[%clk
0:02:29.4]} 20. Bh6 {[%clk 0:02:13.7]} 20... Nxd5 {[%clk 0:02:07.4]} 21. Bc4
{[%clk 0:01:52.3]} 21... Nb6 {[%clk 0:01:20.2]} 22. Nxd5 {[%clk 0:01:37]} 22...
Nxa4 {[%clk 0:00:56.8]} 23. Ne7+ {[%clk 0:01:35.4]} 23... Kh8 {[%clk 0:00:56.6]}
24. Bxg7+ {[%clk 0:01:35.7]} 24... Kxg7 {[%clk 0:00:54.5]} 25. Qg5+ {[%clk
0:01:35.6]} 25... Kh8 {[%clk 0:00:54.3]} 26. Ng6+ {[%clk 0:01:27.6]} 26... Kg7
{[%clk 0:00:46.9]} 27. Nxf8+ {[%clk 0:01:19.7]} 27... Qxg5 {[%clk 0:00:45.9]}
28. Ne6+ {[%clk 0:01:20]} 28... Kf6 {[%clk 0:00:46]} 29. Nxg5 {[%clk 0:01:20.1]}
29... Kxg5 {[%clk 0:00:46.5]} 30. Ra1 {[%clk 0:01:13.8]} 1-0

[Event "Early-Titled-Tuesday-Blitz-March-12-2024"]
[Site "Chess.com"]
[Date "2024.03.12"]
[Round "6"]
[White "eightbyeightchess"]
[Black "Ze-Pequeno"]
[Result "1-0"]
[WhiteElo "2404"]
[BlackElo "2193"]
[TimeControl "180+1"]
[EndTime "9:03:56 PDT"]
[Termination "eightbyeightchess won by resignation"]

1. e4 {[%clk 0:03:00]} 1... c5 {[%clk 0:02:59.4]} 2. Nf3 {[%clk 0:02:59.6]} 2...
d6 {[%clk 0:02:59.6]} 3. d4 {[%clk 0:02:58.6]} 3... cxd4 {[%clk 0:02:59.9]} 4.
Qxd4 {[%clk 0:02:59.5]} 4... a6 {[%clk 0:02:38.2]} 5. c4 {[%clk 0:02:58.3]} 5...
Nc6 {[%clk 0:02:28.9]} 6. Qe3 {[%clk 0:02:58]} 6... g6 {[%clk 0:02:26.1]} 7. h3
{[%clk 0:02:58.5]} 7... Nf6 {[%clk 0:02:05.2]} 8. Be2 {[%clk 0:02:57.5]} 8...
Bg7 {[%clk 0:02:05]} 9. O-O {[%clk 0:02:58.1]} 9... O-O {[%clk 0:02:05.5]} 10.
Rd1 {[%clk 0:02:58.6]} 10... Bd7 {[%clk 0:01:57.2]} 11. Nc3 {[%clk 0:02:28.3]}
11... Qb8 {[%clk 0:01:53.4]} 12. Qg5 {[%clk 0:02:19]} 12... Rc8 {[%clk
0:01:44.8]} 13. Qh4 {[%clk 0:02:18]} 13... Na5 {[%clk 0:01:34.7]} 14. Bh6 {[%clk
0:02:14.1]} 14... Nxc4 {[%clk 0:01:30.6]} 15. Ng5 {[%clk 0:02:11]} 15... Bh8
{[%clk 0:01:16.3]} 16. Nd5 {[%clk 0:02:07.4]} 16... Nxd5 {[%clk 0:01:07.5]} 17.
exd5 {[%clk 0:01:56.3]} 17... Nxb2 {[%clk 0:01:06.9]} 18. Rd4 {[%clk 0:01:43]}
18... b5 {[%clk 0:00:56]} 19. Rf4 {[%clk 0:01:31]} 19... Be8 {[%clk 0:00:55.5]}
20. Bg7 {[%clk 0:01:20]} 20... h5 {[%clk 0:00:39.9]} 21. Bxh8 {[%clk 0:01:19.6]}
21... Kxh8 {[%clk 0:00:39.8]} 22. Bxh5 {[%clk 0:01:20]} 1-0

[Event "Early-Titled-Tuesday-Blitz-March-12-2024"]
[Site "Chess.com"]
[Date "2024.03.12"]
[Round "6"]
[White "Korchmar_Vasiliy"]
[Black "Lady_Nika"]
[Result "1-0"]
[WhiteElo "2725"]
[BlackElo "2542"]
[TimeControl "180+1"]
[EndTime "9:04:01 PDT"]
[Termination "Korchmar_Vasiliy won by resignation"]

1. e4 {[%clk 0:03:00.9]} 1... e6 {[%clk 0:02:57.6]} 2. d4 {[%clk 0:03:00.9]}
2... d5 {[%clk 0:02:57.8]} 3. e5 {[%clk 0:03:01.6]} 3... c5 {[%clk 0:02:57.7]}
4. c3 {[%clk 0:03:02.3]} 4... Qb6 {[%clk 0:02:57.3]} 5. Nf3 {[%clk 0:03:02.6]}
5... Nc6 {[%clk 0:02:57.2]} 6. Be2 {[%clk 0:03:02.3]} 6... Bd7 {[%clk
0:02:57.2]} 7. O-O {[%clk 0:03:01.7]} 7... f6 {[%clk 0:02:57.6]} 8. Re1 {[%clk
0:02:36.2]} 8... cxd4 {[%clk 0:02:56.6]} 9. cxd4 {[%clk 0:02:35.9]} 9... Bb4
{[%clk 0:02:56.1]} 10. Nc3 {[%clk 0:02:35.1]} 10... Nge7 {[%clk 0:02:56.2]} 11.
exf6 {[%clk 0:02:09.3]} 11... gxf6 {[%clk 0:02:55.8]} 12. Bf4 {[%clk 0:02:05.9]}
12... Ng6 {[%clk 0:02:52.4]} 13. Bg3 {[%clk 0:02:05.5]} 13... Be7 {[%clk
0:02:34]} 14. Nb5 {[%clk 0:02:04.1]} 14... e5 {[%clk 0:02:31]} 15. dxe5 {[%clk
0:02:02.8]} 15... Ncxe5 {[%clk 0:02:30.1]} 16. Nxe5 {[%clk 0:01:56.6]} 16...
fxe5 {[%clk 0:02:16.3]} 17. Qxd5 {[%clk 0:01:55.6]} 17... Bc6 {[%clk 0:02:02.4]}
18. Qb3 {[%clk 0:01:39.1]} 18... Rf8 {[%clk 0:01:50.2]} 19. a4 {[%clk
0:01:35.1]} 19... Bc5 {[%clk 0:01:49.8]} 20. Qe6+ {[%clk 0:01:05.1]} 20... Be7
{[%clk 0:01:49.4]} 21. Rad1 {[%clk 0:00:54.9]} 21... Rf6 {[%clk 0:01:06.3]} 22.
Qg8+ {[%clk 0:00:55.1]} 22... Bf8 {[%clk 0:01:06.3]} 23. Bh5 {[%clk 0:00:51.2]}
23... e4 {[%clk 0:01:04.4]} 24. Nc7+ {[%clk 0:00:46.8]} 24... Ke7 {[%clk
0:01:01.6]} 25. Qxh7+ {[%clk 0:00:45.6]} 25... Rf7 {[%clk 0:00:59.5]} 26. Qxg6
{[%clk 0:00:43.7]} 1-0

[Event "Early-Titled-Tuesday-Blitz-March-12-2024"]
[Site "Chess.com"]
[Date "2024.03.12"]
[Round "6"]
[White "zozik"]
[Black "Louis-Paulsen-Fan"]
[Result "0-1"]
[WhiteElo "2344"]
[BlackElo "2260"]
[TimeControl "180+1"]
[EndTime "9:04:18 PDT"]
[Termination "Louis-Paulsen-Fan won on time"]

1. d4 {[%clk 0:00:46.9]} 1... d5 {[%clk 0:02:59.3]} 2. c4 {[%clk 0:00:45]} 2...
e6 {[%clk 0:02:59.7]} 3. Nf3 {[%clk 0:00:45.4]} 3... c5 {[%clk 0:02:59.9]} 4. g3
{[%clk 0:00:46.1]} 4... Nc6 {[%clk 0:02:59.6]} 5. Bg2 {[%clk 0:00:45.8]} 5...
dxc4 {[%clk 0:02:59.6]} 6. Qa4 {[%clk 0:00:42]} 6... Bd7 {[%clk 0:02:55]} 7.
Qxc4 {[%clk 0:00:40.8]} 7... cxd4 {[%clk 0:02:47.9]} 8. Nxd4 {[%clk 0:00:41.7]}
8... Rc8 {[%clk 0:02:45]} 9. O-O {[%clk 0:00:37.8]} 9... Nf6 {[%clk 0:02:25.7]}
10. Bg5 {[%clk 0:00:35.6]} 10... Be7 {[%clk 0:02:21.5]} 11. Nc3 {[%clk
0:00:34.4]} 11... O-O {[%clk 0:02:17.2]} 12. Rfd1 {[%clk 0:00:34.8]} 12... Qb6
{[%clk 0:02:02.5]} 13. Nxc6 {[%clk 0:00:34.3]} 13... Bxc6 {[%clk 0:02:00.8]} 14.
Bxc6 {[%clk 0:00:34.5]} 14... Rxc6 {[%clk 0:01:59.8]} 15. Qb3 {[%clk 0:00:33.1]}
15... Qa5 {[%clk 0:01:57.9]} 16. Rac1 {[%clk 0:00:31.9]} 16... Qxg5 {[%clk
0:01:56.6]} 17. Qxb7 {[%clk 0:00:32.2]} 17... Qc5 {[%clk 0:01:34.2]} 18. b4
{[%clk 0:00:27.6]} 18... Rc7 {[%clk 0:01:29]} 19. bxc5 {[%clk 0:00:23.1]} 19...
Rxb7 {[%clk 0:01:28.5]} 20. c6 {[%clk 0:00:24]} 20... Rb6 {[%clk 0:01:11.8]} 21.
c7 {[%clk 0:00:20.6]} 21... Rc8 {[%clk 0:01:11.7]} 22. Na4 {[%clk 0:00:13.9]}
22... Rb7 {[%clk 0:01:11.9]} 0-1

[Event "Early-Titled-Tuesday-Blitz-March-12-2024"]
[Site "Chess.com"]
[Date "2024.03.12"]
[Round "6"]
[White "ViktoriyaTarasova"]
[Black "ccccvhhhj"]
[Result "0-1"]
[WhiteElo "2309"]
[BlackElo "2449"]
[TimeControl "180+1"]
[EndTime "9:04:23 PDT"]
[Termination "ccccvhhhj won on time"]

1. d4 {[%clk 0:02:58.3]} 1... e5 {[%clk 0:02:59.6]} 2. dxe5 {[%clk 0:02:57.6]}
2... d6 {[%clk 0:03:00.2]} 3. exd6 {[%clk 0:02:49.5]} 3... Bxd6 {[%clk
0:03:01.1]} 4. Nf3 {[%clk 0:02:47.4]} 4... Bg4 {[%clk 0:03:00.4]} 5. e3 {[%clk
0:02:46.9]} 5... Nc6 {[%clk 0:03:00.7]} 6. Be2 {[%clk 0:02:46.6]} 6... Qe7
{[%clk 0:03:01]} 7. c3 {[%clk 0:02:43.8]} 7... O-O-O {[%clk 0:03:01.3]} 8. Qa4
{[%clk 0:02:41.4]} 8... Nf6 {[%clk 0:03:01.7]} 9. O-O {[%clk 0:02:39.2]} 9... h5
{[%clk 0:03:02.2]} 10. Na3 {[%clk 0:02:33.9]} 10... Bxf3 {[%clk 0:02:45.6]} 11.
Bxf3 {[%clk 0:02:30]} 11... Bxh2+ {[%clk 0:02:45.7]} 12. Kxh2 {[%clk 0:01:30.4]}
12... Ng4+ {[%clk 0:02:45.2]} 13. Kg3 {[%clk 0:01:31]} 13... g5 {[%clk
0:01:58.4]} 14. Bxg4+ {[%clk 0:01:11.6]} 14... hxg4 {[%clk 0:01:59.3]} 15. Qxg4+
{[%clk 0:01:10.8]} 15... Kb8 {[%clk 0:01:59.9]} 16. f3 {[%clk 0:01:05.7]} 16...
Ne5 {[%clk 0:01:47.1]} 17. Qe4 {[%clk 0:00:44.2]} 17... g4 {[%clk 0:01:44.4]}
18. Kf2 {[%clk 0:00:23.7]} 18... f5 {[%clk 0:01:42.6]} 19. Qa4 {[%clk
0:00:12.7]} 19... gxf3 {[%clk 0:01:36.5]} 20. Nb5 {[%clk 0:00:07.3]} 20... a6
{[%clk 0:01:35.1]} 21. Nd4 {[%clk 0:00:01.9]} 21... fxg2 {[%clk 0:01:35.6]} 22.
Rg1 {[%clk 0:00:02.4]} 22... Ng4+ {[%clk 0:01:30.1]} 23. Ke2 {[%clk 0:00:02.7]}
23... Qe4 {[%clk 0:01:22.4]} 24. Bd2 {[%clk 0:00:02.6]} 24... Rh3 {[%clk
0:01:16.7]} 25. Qc2 {[%clk 0:00:01]} 25... Rxd4 {[%clk 0:01:12.8]} 0-1